bitfinex-derivatives/quotes_SOLF0:USTF0_20240913
["timestamp","ask_amount","ask_price","bid_price","bid_amount"]
[1726235204375,29.63335027,132.84,132.76,21.71]
[1726235204566,3.7647,132.81,132.78,21.71]
[1726235205067,3.7649,132.8,132.78,21.71]
[1726235205569,3.7647,132.81,132.78,21.71]
[1726235205869,7.92335027,132.84,132.78,21.71]
[1726235206263,3.7648,132.81,132.78,21.71]
[1726235207673,21.71,132.82,132.74,25.8272]
[1726235207970,3.7653,132.79,132.74,25.8272]
[1726235208165,21.71,132.82,132.74,25.8272]
[1726235208365,7.92335027,132.84,132.76,21.71]
[1726235208366,29.63335027,132.84,132.76,21.71]
[1726235208580,21.71,132.82,132.74,4.1172]
[1726235208870,21.71,132.79,132.65,229.0]
[1726235209077,21.71,132.79,132.7,21.71]
[1726235209276,21.71,132.8,132.72,21.71]
[1726235209664,3.7655,132.78,132.74,3.7665]
[1726235209861,21.71,132.8,132.72,21.71]
[1726235210069,3.7659,132.77,132.73,3.7666]
[1726235210478,21.71,132.82,132.74,21.71]
[1726235210679,3.7652,132.79,132.75,3.7661]
[1726235211061,21.71,132.82,132.75,3.7661]
[1726235211263,3.7653,132.79,132.75,3.7661]
[1726235211775,3.7655,132.78,132.74,25.4765]
[1726235211974,21.71,132.82,132.74,21.71]
[1726235212670,3.7649,132.8,132.74,21.71]
[1726235212870,3.7649,132.8,132.76,25.4759]
[1726235213064,29.63335027,132.84,132.77,21.71]
[1726235213065,7.92335027,132.84,132.77,21.71]
[1726235213265,7.92335027,132.84,132.78,3.7654]
[1726235213675,7.92335027,132.84,132.77,21.71]
[1726235213868,7.92335027,132.84,132.77,25.4755]
[1726235214071,7.92335027,132.84,132.77,21.71]
[1726235214469,3.7644,132.82,132.78,3.7652]
[1726235214762,7.92335027,132.84,132.78,3.7652]
[1726235215171,7.92335027,132.84,132.77,21.71]
[1726235216971,6.58665027,132.84,132.77,21.71]
[1726235217168,6.58665027,132.84,132.77,25.4755]
[1726235217362,3.7647,132.81,132.77,25.4755]
[1726235219169,3.7649,132.8,132.77,21.71]
[1726235219971,3.7649,132.8,132.77,25.4756]
[1726235220568,3.7647,132.81,132.77,25.4756]
[1726235221979,3.7649,132.8,132.77,25.4756]
[1726235222884,3.7641,132.83,132.79,21.71]
[1726235223078,3.79015027,132.84,132.79,21.71]
[1726235223275,24.5638,132.88,132.79,21.71]
[1726235223480,24.5638,132.88,132.79,25.475]
[1726235223676,24.5638,132.88,132.79,21.71]
[1726235223880,28.31003372,132.88,132.79,21.71]
[1726235224082,3.7642,132.83,132.79,25.4751]
[1726235224283,28.31003372,132.88,132.79,21.71]
[1726235224482,21.71,132.86,132.79,21.71]
[1726235226388,3.7642,132.83,132.79,21.71]
[1726235226779,3.7642,132.83,132.79,25.475]
[1726235227179,3.7643,132.82,132.79,21.71]
[1726235227887,3.7641,132.83,132.79,25.4751]
[1726235228484,3.7641,132.83,132.73,25.8745]
[1726235228485,3.7645,132.81,132.78,3.7652]
[1726235228781,21.71,132.85,132.77,21.71]
[1726235228983,21.71,132.83,132.76,21.71]
[1726235229785,3.7651,132.8,132.76,25.4757]
[1726235229987,3.75847776,132.8,132.76,25.4757]
[1726235230186,3.765,132.8,132.76,25.4759]
[1726235230383,3.77807083,132.8,132.76,21.71]
[1726235230585,21.71,132.83,132.76,21.71]
[1726235230884,21.71,132.83,132.74,21.71]
[1726235231083,1.3914,132.82,132.74,21.71]
[1726235231294,2.8376,132.82,132.74,21.71]
[1726235231481,2.8376,132.82,132.75,3.7661]
[1726235232186,2.8376,132.82,132.74,25.4764]
[1726235232793,2.8376,132.82,132.75,3.7662]
[1726235233089,2.8376,132.82,132.76,21.71]
[1726235233278,2.8376,132.82,132.76,25.4758]
[1726235233487,2.8376,132.82,132.76,21.71]
[1726235233681,3.7654,132.79,132.76,21.71]
[1726235233880,3.69752016,132.8,132.76,21.71]
[1726235234076,23.0704,132.85,132.77,21.71]
[1726235234289,3.7648,132.8,132.77,25.4755]
[1726235234491,1.3604,132.85,132.77,21.71]
[1726235234693,1.3604,132.85,132.79,21.71]
[1726235234886,3.7641,132.83,132.79,25.4749]
[1726235235493,3.7641,132.83,132.78,3.7653]
[1726235235682,24.5146,132.87,132.77,21.71]
[1726235235683,21.71,132.85,132.77,21.71]
[1726235236186,21.71,132.82,132.73,25.8745]
[1726235236593,1.3364,132.81,132.73,29.6412]
[1726235236790,5.07518966,132.81,132.73,29.6412]
[1726235236986,3.7659,132.77,132.73,25.8745]
[1726235237190,3.7659,132.77,132.73,29.6413]
[1726235237388,3.78966011,132.79,132.73,2.8147]
[1726235237586,1.3364,132.81,132.73,24.5247]
[1726235237782,1.3364,132.81,132.74,3.7665]
[1726235238187,3.7653,132.79,132.74,3.7665]
[1726235238892,1.3364,132.81,132.75,21.71]
[1726235239393,5.16309402,132.81,132.75,21.71]
[1726235239695,3.82669402,132.81,132.75,21.71]
[1726235239892,1.372,132.84,132.77,21.71]
[1726235240193,23.031,132.86,132.78,21.71]
[1726235240390,23.031,132.86,132.78,25.4752]
[1726235241186,1.321,132.86,132.8,21.71]
[1726235243396,3.7641,132.83,132.8,21.71]
[1726235243602,23.031,132.86,132.78,21.71]
[1726235244406,23.031,132.86,132.76,21.71]
[1726235244805,23.031,132.86,132.78,21.71]
[1726235244995,1.321,132.86,132.8,21.71]
[1726235245301,1.321,132.86,132.78,21.71]
[1726235245800,3.7645,132.82,132.78,25.4752]
[1726235246796,3.7648,132.8,132.77,21.71]
[1726235247315,3.7651,132.79,132.77,21.71]
[1726235248307,3.7657,132.77,132.74,3.7664]
[1726235248811,3.7661,132.76,132.73,29.7445]
[1726235249208,1.3767,132.81,132.73,25.9778]
[1726235249409,5.20073353,132.81,132.75,21.71]
[1726235249600,1.3767,132.81,132.75,21.71]
[1726235249809,21.71,132.84,132.75,21.71]
[1726235250010,3.7653,132.79,132.76,3.7658]
[1726235250202,21.71,132.84,132.77,21.71]
[1726235250408,23.0867,132.86,132.77,21.71]
[1726235250615,3.7647,132.81,132.77,25.4756]
[1726235250804,23.0867,132.86,132.77,21.71]
[1726235251211,1.3767,132.86,132.79,21.71]
[1726235252322,3.7644,132.82,132.79,21.71]
[1726235253325,3.7644,132.82,132.78,3.7652]
[1726235253515,23.0767,132.86,132.77,25.4655]
[1726235253917,23.0767,132.86,132.77,21.7]
[1726235254117,3.7647,132.81,132.77,25.4656]
[1726235254316,23.0767,132.86,132.77,21.7]
[1726235254718,23.0767,132.86,132.78,3.7652]
[1726235255113,1.3767,132.86,132.79,21.7]
[1726235255320,23.0767,132.86,132.74,3.7664]
[1726235255524,21.7,132.84,132.74,21.7]
[1726235255828,21.7,132.82,132.74,21.7]
[1726235256019,21.7,132.82,132.73,29.7345]
[1726235256218,3.7658,132.77,132.73,29.7345]
[1726235256427,3.78946575,132.78,132.73,25.9678]
[1726235256725,3.7658,132.77,132.73,25.9678]
[1726235257022,3.7382262,132.78,132.73,29.7346]
[1726235257226,1.4402,132.81,132.73,29.7546]
[1726235257227,23.1602,132.81,132.73,29.7546]
[1726235257527,3.7659,132.77,132.73,29.7546]
[1726235257722,26.93517112,132.81,132.73,29.7546]
[1726235258025,3.766,132.76,132.73,24.5347]
[1726235258325,21.72,132.78,132.72,1500.0]
[1726235258521,3.7667,132.74,132.72,1500.0]
[1726235258828,21.72,132.78,132.72,1500.0]
[1726235259121,21.72,132.76,132.72,1500.0]
[1726235259631,3.7668,132.73,132.72,1500.0]
[1726235259813,3.7668,132.73,132.72,1497.8132]
[1726235260020,29.19204572,132.73,132.72,1497.8132]
[1726235260619,29.19204572,132.73,132.72,1495.6264]
[1726235262931,7.47204572,132.73,132.72,1495.6264]
[1726235263844,3.7668,132.73,132.72,1495.6264]
[1726235264529,1.4128,132.77,132.72,1495.6264]
[1726235264725,23.1547,132.79,132.72,1495.6264]
[1726235265235,3.7663,132.75,132.72,1495.6264]
[1726235265532,23.1547,132.79,132.72,1495.6264]
[1726235265737,3.7668,132.74,132.72,1495.6264]
[1726235266831,23.1547,132.79,132.72,1495.6264]
[1726235267530,3.7661,132.76,132.72,1495.6264]
[1726235267740,21.72,132.79,132.72,1495.6264]
[1726235268030,3.7658,132.77,132.72,1499.3933]
[1726235268622,3.766,132.76,132.72,1499.3933]
[1726235269333,3.7658,132.77,132.72,1499.3933]
[1726235270928,3.766,132.76,132.72,1499.3933]
[1726235271739,21.72,132.79,132.72,1499.3933]
[1726235272130,21.72,132.79,132.72,1495.6264]
[1726235272531,25.39650203,132.79,132.72,1495.6264]
[1726235272732,25.39650203,132.79,132.72,1499.3935]
[1726235272928,3.67650203,132.79,132.72,1499.3935]
[1726235273128,3.7657,132.77,132.72,1499.3935]
[1726235273440,3.74915177,132.76,132.72,1499.3935]
[1726235273742,21.72,132.79,132.72,1499.3935]
[1726235273945,25.40053984,132.79,132.72,1499.3935]
[1726235274132,25.40053984,132.79,132.72,1495.6264]
[1726235274636,3.7662,132.76,132.72,1495.6264]
[1726235275144,25.40053984,132.79,132.72,1495.6264]
[1726235275942,3.7658,132.77,132.73,3.7666]
[1726235276439,3.68053984,132.79,132.73,21.72]
[1726235276737,21.72,132.82,132.73,21.72]
[1726235277239,21.72,132.82,132.74,3.7663]
[1726235277637,21.72,132.8,132.72,1495.6264]
[1726235277838,21.72,132.77,132.72,1495.6264]
[1726235278942,3.74679632,132.8,132.72,1495.6264]
[1726235279137,21.72,132.8,132.72,1517.3464]
[1726235279344,21.72,132.79,132.72,1495.6264]
[1726235279943,3.7664,132.75,132.72,1495.6264]
[1726235280343,3.7668,132.73,132.72,1492.6364]
[1726235280547,7.44829264,132.73,132.72,1492.6364]
[1726235281544,3.7668,132.73,132.72,1489.6364]
[1726235281741,21.72,132.74,132.72,1489.6364]
[1726235281742,21.72,132.76,132.72,1489.6364]
[1726235282848,5.12886445,132.77,132.72,1489.6364]
[1726235283051,3.79306445,132.77,132.72,1489.6364]
[1726235283243,21.72,132.78,132.72,1489.6364]
[1726235283743,25.45699619,132.78,132.72,1489.6364]
[1726235284341,38.50699619,132.78,132.72,1489.6364]
[1726235285246,34.77,132.76,132.72,1489.6364]
[1726235285847,3.7668,132.73,132.72,1489.6364]
[1726235286543,3.7668,132.73,132.72,1486.6364]
[1726235286943,7.46034509,132.73,132.72,1486.6364]
[1726235287143,3.7668,132.73,132.72,1363.18640001]
[1726235287453,3.7668,132.73,132.72,1353.74260001]
[1726235287952,7.50671704,132.73,132.72,1353.74260001]
[1726235288446,3.73991704,132.73,132.72,1353.74260001]
[1726235288643,34.77,132.76,132.72,1353.74260001]
[1726235289248,3.7668,132.73,132.72,1353.74260001]
[1726235291549,38.5366846,132.76,132.72,1353.74260001]
[1726235291855,3.7666846,132.76,132.72,1353.74260001]
[1726235292054,34.77,132.78,132.73,2.7811]
[1726235292647,38.46720965,132.78,132.73,2.7811]
[1726235293049,3.7661,132.76,132.73,2.7811]
[1726235293449,3.7657,132.77,132.73,6.5478]
[1726235294153,7.52653842,132.77,132.73,6.5478]
[1726235295045,3.7655,132.78,132.74,3.7664]
[1726235295864,3.7655,132.78,132.73,6.5478]
[1726235296046,3.7657,132.77,132.73,6.5478]
[1726235296455,3.7655,132.78,132.74,3.7665]
[1726235297151,3.7657,132.77,132.73,6.5478]
[1726235297351,38.58474779,132.8,132.73,2.7811]
[1726235297651,3.7656,132.78,132.74,3.7665]
[1726235297855,38.58474779,132.8,132.73,2.7811]
[1726235298054,3.7652,132.79,132.75,3.7662]
[1726235298762,34.77,132.85,132.73,37.5511]
[1726235299062,34.77,132.85,132.76,34.77]
[1726235299460,34.77,132.85,132.77,3.7655]
[1726235299859,34.77,132.85,132.78,4.2858]
[1726235300162,3.7644,132.82,132.78,8.0511]
[1726235301156,3.764,132.83,132.79,3.7649]
[1726235301559,38.54837184,132.87,132.79,3.7649]
[1726235302463,38.54837184,132.87,132.8,3.7648]
[1726235302867,3.7636,132.85,132.78,4.2858]
[1726235303056,38.54837184,132.87,132.78,4.2858]
[1726235303757,3.77837184,132.87,132.78,39.0558]
[1726235303965,7.86614,132.9,132.78,39.0558]
[1726235303966,42.63614,132.9,132.78,39.0558]
[1726235304270,3.764,132.84,132.78,39.0558]
[1726235304860,3.764,132.84,132.8,3.7646]
[1726235305264,3.7641,132.83,132.8,3.7646]
[1726235305565,3.7641,132.83,132.79,3.765]
[1726235305966,3.7643,132.82,132.79,3.765]
[1726235306269,3.67512996,132.83,132.78,8.051]
[1726235306468,3.7647,132.81,132.78,4.2858]
[1726235306859,3.7610186,132.83,132.78,4.2858]
[1726235307066,34.77,132.85,132.78,4.2858]
[1726235307369,34.77,132.88,132.78,39.0558]
[1726235307764,3.7634,132.85,132.78,39.0558]
[1726235308069,34.77,132.9,132.78,39.0558]
[1726235308070,34.77,132.9,132.81,3.7644]
[1726235308263,3.7636,132.85,132.78,39.0558]
[1726235308457,53.93153007,132.91,132.81,3.7644]
[1726235308864,34.77,132.88,132.78,39.0558]
[1726235309067,34.77,132.88,132.8,3.7647]
[1726235309270,3.7635,132.85,132.78,39.0558]
[1726235309768,3.7635,132.85,132.82,3.7641]
[1726235310066,3.7635,132.85,132.83,2.8019]
[1726235310373,21.69,132.89,132.83,2.8019]
[1726235310764,3.7633,132.86,132.83,2.8019]
[1726235310964,21.69,132.89,132.83,2.8019]
[1726235311368,3.7636,132.85,132.83,2.8019]
[1726235311860,21.69,132.87,132.83,2.8019]
[1726235312567,3.7636,132.85,132.83,2.8019]
[1726235312965,21.69,132.89,132.83,2.8019]
[1726235314972,21.69,132.85,132.78,1.4246]
[1726235315169,21.69,132.87,132.79,2.8112]
[1726235315369,3.7636,132.85,132.79,2.8112]
[1726235315574,7.44637165,132.85,132.79,2.8112]
[1726235315772,3.68277165,132.85,132.79,2.8112]
[1726235315977,21.69,132.87,132.79,6.5761]
[1726235316673,21.69,132.8,132.72,1353.74260001]
[1726235316877,21.69,132.8,132.73,2.7113]
[1726235317076,21.69,132.8,132.73,4.1536]
[1726235317270,3.84916748,132.79,132.73,4.1536]
[1726235317469,21.69,132.8,132.73,4.1536]
[1726235317672,3.7658,132.77,132.73,4.1536]
[1726235317991,25.39978678,132.8,132.73,4.1536]
[1726235318273,3.70978678,132.8,132.73,4.1536]
[1726235318465,34.75,132.82,132.73,4.1536]
[1726235318979,3.76177201,132.87,132.73,4.1536]
[1726235319283,34.75,132.86,132.74,34.75]
[1726235319472,38.57687081,132.86,132.74,34.75]
[1726235320274,3.7642,132.83,132.78,3.7652]
[1726235320879,3.7643,132.82,132.78,3.7652]
[1726235321176,38.57687081,132.86,132.79,3.7651]
[1726235321471,3.764,132.84,132.8,4.2403]
[1726235322676,3.764,132.84,132.8,8.0051]
[1726235323776,3.764,132.83,132.8,8.0051]
[1726235324172,3.764,132.83,132.8,4.2403]
[1726235324378,38.57687081,132.86,132.8,4.2403]
[1726235324581,3.7642,132.83,132.8,4.2403]
[1726235325471,3.7642,132.83,132.8,8.0051]
[1726235325670,3.7638,132.84,132.8,8.0051]
[1726235326076,3.764,132.83,132.8,8.0051]
[1726235326779,3.764,132.83,132.8,4.2403]
[1726235327080,34.75,132.88,132.8,4.2403]
[1726235327476,3.7645,132.82,132.8,4.2403]
[1726235327678,34.75,132.86,132.8,2.8981]
[1726235327976,3.7645,132.81,132.8,2.8981]
[1726235328180,34.75,132.81,132.74,1.4066]
[1726235328778,3.85919043,132.8,132.74,1.4066]
[1726235328971,34.75,132.83,132.74,1.4066]
[1726235329173,3.7653,132.79,132.74,1.4066]
[1726235329572,34.75,132.86,132.74,1.4066]
[1726235329778,34.75,132.86,132.75,34.75]
[1726235329978,34.75,132.86,132.74,1.4066]
[1726235330775,34.75,132.82,132.74,1.4066]
[1726235332073,3.7656,132.78,132.74,1.4066]
[1726235332669,3.78579865,132.79,132.74,1.4066]
[1726235332868,34.75,132.82,132.74,1.4066]
[1726235333069,3.7658,132.77,132.74,1.4066]
[1726235333281,3.82234911,132.79,132.74,1.4066]
[1726235333579,34.75,132.82,132.74,1.4066]
[1726235334175,34.75,132.86,132.74,1.4066]
[1726235334376,42.61821494,132.86,132.75,3.7662]
[1726235334781,3.765,132.8,132.75,3.7662]
[1726235334973,3.84157371,132.79,132.75,3.7662]
[1726235335182,42.61821494,132.86,132.75,3.7662]
[1726235335384,3.7649,132.8,132.75,3.7662]
[1726235335687,7.46779418,132.8,132.75,3.7662]
[1726235336181,3.70289418,132.8,132.74,1.4066]
[1726235336385,34.75,132.83,132.74,1.4066]
[1726235336588,3.7653,132.79,132.75,3.7662]
[1726235337492,3.7654,132.78,132.75,3.7662]
[1726235337686,3.76582755,132.8,132.75,3.7662]
[1726235337990,34.75,132.83,132.76,3.7658]
[1726235338188,34.75,132.83,132.74,1.4066]
[1726235338392,21.71,132.83,132.75,21.71]
[1726235338586,3.765,132.8,132.75,21.71]
[1726235338782,3.75348556,132.81,132.75,21.71]
[1726235338979,21.71,132.83,132.75,21.71]
[1726235339178,3.7654,132.79,132.75,21.71]
[1726235339384,3.72786193,132.8,132.74,1.4066]
[1726235339583,21.71,132.81,132.74,1.4066]
[1726235339985,3.7653,132.79,132.76,3.766]
[1726235340184,3.75913784,132.8,132.74,1.4066]
[1726235340384,3.7658,132.77,132.74,5.173]
[1726235340589,3.75800738,132.79,132.74,1.4066]
[1726235340901,21.71,132.8,132.73,2.7977]
[1726235341278,21.71,132.78,132.73,2.7977]
[1726235341480,21.71,132.78,132.72,1353.74260001]
[1726235341887,3.7664,132.75,132.72,1353.74260001]
[1726235343194,21.71,132.76,132.72,1353.74260001]
[1726235343783,3.7668,132.73,132.72,1353.74260001]
[1726235343991,7.55769179,132.73,132.72,1353.74260001]
[1726235344783,3.7668,132.73,132.72,1353.74260001]
[1726235345099,3.72955236,132.74,132.72,1353.74260001]
[1726235346198,21.71,132.76,132.72,1353.74260001]
[1726235346400,3.7667,132.74,132.72,1353.74260001]
[1726235346595,7.5558106,132.74,132.72,1353.74260001]
[1726235346788,3.7891106,132.74,132.72,1353.74260001]
[1726235346993,3.7667,132.74,132.72,1353.74260001]
[1726235347195,3.74651515,132.74,132.72,1353.74260001]
[1726235347502,21.71,132.76,132.72,1353.74260001]
[1726235348294,3.7663,132.75,132.72,1353.74260001]
[1726235348696,21.71,132.74,132.72,1353.74260001]
[1726235348894,3.76724745,132.73,132.72,1353.74260001]
[1726235349094,7.53404745,132.73,132.72,1353.74260001]
[1726235349494,3.7668,132.73,132.72,1353.74260001]
[1726235350098,7.47825871,132.73,132.72,1353.74260001]
[1726235350490,21.71,132.76,132.72,1353.74260001]
[1726235351003,3.7668,132.73,132.72,1353.74260001]
[1726235351399,21.71,132.76,132.72,1353.74260001]
[1726235351593,3.7663,132.75,132.72,1353.74260001]
[1726235351799,21.71,132.76,132.72,1353.74260001]
[1726235352000,3.7668,132.73,132.72,1353.74260001]
[1726235352196,3.73633748,132.74,132.72,1353.74260001]
[1726235352397,21.71,132.76,132.72,1353.74260001]
[1726235353298,3.7664,132.75,132.72,1353.74260001]
[1726235353506,3.85206141,132.74,132.72,1353.74260001]
[1726235354096,21.71,132.76,132.72,1353.74260001]
[1726235354499,3.7664,132.75,132.72,1353.74260001]
[1726235354699,3.79184258,132.74,132.72,1353.74260001]
[1726235354902,21.71,132.78,132.72,1353.74260001]
[1726235355212,3.71758142,132.74,132.72,1353.74260001]
[1726235355503,3.71758142,132.74,132.72,1357.50960001]
[1726235355697,21.71,132.78,132.72,1357.50960001]
[1726235356107,3.7663,132.75,132.72,1357.50960001]
[1726235356310,3.85064837,132.74,132.72,1353.74260001]
[1726235356808,7.61714837,132.74,132.72,1353.74260001]
[1726235358908,7.61714837,132.74,132.72,1357.50970001]
[1726235359098,3.85064837,132.74,132.72,1357.50970001]
[1726235359303,3.7664,132.75,132.72,1353.74260001]
[1726235359812,3.79900482,132.74,132.72,1353.74260001]
[1726235360111,3.79900482,132.74,132.72,1357.50960001]
[1726235360313,7.56560482,132.74,132.72,1353.74260001]
[1726235362120,7.56560482,132.74,132.72,1357.50970001]
[1726235362317,21.71,132.79,132.72,1353.74260001]
[1726235362709,3.7661,132.76,132.72,1353.74260001]
[1726235363211,3.7661,132.76,132.73,3.7668]
[1726235363615,3.7661,132.76,132.72,1353.74260001]
[1726235363923,3.7661,132.76,132.73,3.7668]
[1726235364221,3.7661,132.76,132.72,1353.74260001]
[1726235364611,3.7661,132.76,132.73,3.7666]
[1726235364914,3.7661,132.76,132.72,1353.74260001]
[1726235365314,3.7663,132.75,132.73,3.7666]
[1726235365815,3.7668,132.73,132.72,1353.74260001]
[1726235366224,21.71,132.78,132.72,1353.74260001]
[1726235366614,3.7667,132.74,132.72,1357.50970001]
[1726235367114,3.7668,132.73,132.72,1353.74260001]
[1726235369823,21.71,132.78,132.72,1353.74260001]
[1726235370525,21.71,132.76,132.72,1353.74260001]
[1726235371031,3.7668,132.73,132.72,1353.74260001]
[1726235371225,7.55524801,132.73,132.72,1353.74260001]
[1726235374930,3.73803602,132.81,132.72,1353.74260001]
[1726235375132,21.71,132.78,132.72,1353.74260001]
[1726235375332,25.56490441,132.78,132.72,1353.74260001]
[1726235376124,3.7667,132.74,132.72,1353.74260001]
[1726235378228,21.71,132.76,132.72,1357.50960001]
[1726235378426,21.71,132.76,132.72,1353.74260001]
[1726235378833,3.7664,132.75,132.72,1353.74260001]
[1726235381230,3.7666,132.74,132.72,1353.74260001]
[1726235381638,21.71,132.76,132.72,1353.74260001]
[1726235381837,3.7664,132.75,132.72,1353.74260001]
[1726235382035,21.71,132.76,132.72,1353.74260001]
[1726235382537,3.7668,132.73,132.72,1353.74260001]
[1726235384837,3.7667,132.74,132.72,1353.74260001]
[1726235385038,21.71,132.75,132.72,1353.74260001]
[1726235385237,3.85490441,132.78,132.72,1353.74260001]
[1726235385238,21.71,132.77,132.72,1353.74260001]
[1726235385432,3.7665,132.75,132.72,1353.74260001]
[1726235385636,7.60678853,132.75,132.72,1353.74260001]
[1726235386541,3.7666,132.74,132.72,1353.74260001]
[1726235387851,7.5477958,132.74,132.72,1353.74260001]
[1726235388038,3.7666,132.74,132.72,1353.74260001]
[1726235388440,3.67676996,132.73,132.72,1353.74260001]
[1726235388640,21.71,132.77,132.72,1353.74260001]
[1726235388936,21.71,132.75,132.72,1353.74260001]
[1726235389142,3.7665,132.74,132.72,1353.74260001]
[1726235390048,3.7668,132.73,132.72,1353.74260001]
[1726235391843,3.7663,132.75,132.72,1353.74260001]
[1726235392149,21.71,132.77,132.72,1353.74260001]
[1726235392351,3.7664,132.75,132.72,1353.74260001]
[1726235393038,3.7664,132.75,132.72,1355.09370001]
[1726235394245,3.7666,132.74,132.72,1355.09370001]
[1726235394751,3.7668,132.73,132.72,1355.09370001]
[1726235395051,3.7668,132.73,132.72,1353.74260001]
[1726235395745,25.4768,132.73,132.72,1353.74260001]
[1726235398739,25.4768,132.73,132.72,1251.36260001]
[1726235403042,25.4768,132.73,132.72,1148.98260001]
[1726235403447,25.4768,132.73,132.72,1145.98260001]
[1726235403747,7.60985,132.73,132.72,1145.98260001]
[1726235403949,25.4768,132.73,132.72,1142.28260001]
[1726235404351,29.24292112,132.73,132.72,1142.28260001]
[1726235405655,25.4768,132.73,132.72,999.20260001]
[1726235406047,33.35008832,132.73,132.72,999.20260001]
[1726235406247,37.11526958,132.73,132.72,999.20260001]
[1726235406449,33.35008832,132.73,132.72,995.50260001]
[1726235406644,33.35008832,132.73,132.72,949.04910001]
[1726235406645,59.74017216,132.73,132.72,949.04910001]
[1726235406852,63.50378832,132.73,132.72,828.92608833]
[1726235407156,67.36023299,132.73,132.72,828.92608833]
[1726235407545,44.74023299,132.73,132.72,828.92608833]
[1726235408242,36.93023299,132.73,132.72,828.92608833]
[1726235408557,59.55023299,132.73,132.72,783.34008833]
[1726235409145,55.69378832,132.73,132.72,744.12008833]
[1726235409547,59.55432887,132.73,132.72,731.12008833]
[1726235409752,59.55432887,132.73,132.72,671.95008833]
[1726235410150,67.38432887,132.73,132.72,671.95008833]
[1726235410353,67.38432887,132.73,132.72,623.57008833]
[1726235411449,44.76432887,132.73,132.72,623.57008833]
[1726235411853,44.76432887,132.73,132.72,591.74008833]
[1726235412252,67.38432887,132.73,132.72,550.39008833]
[1726235412753,63.52378832,132.73,132.72,420.38718833]
[1726235412964,63.52378832,132.73,132.72,402.70548833]
[1726235413255,67.35876281,132.73,132.72,388.25108833]
[1726235413558,67.35876281,132.73,132.72,384.04388833]
[1726235413758,67.35876281,132.73,132.72,375.11048833]
[1726235413956,67.35876281,132.73,132.72,370.06878833]
[1726235414259,63.52378832,132.73,132.72,366.36878833]
[1726235414459,67.27954339,132.73,132.72,363.72198833]
[1726235414659,63.52378832,132.73,132.72,312.80978833]
[1726235414852,67.37800181,132.73,132.72,312.64538833]
[1726235415159,63.52378832,132.73,132.72,215.25538833]
[1726235415360,67.21654509,132.73,132.72,215.25538833]
[1726235415856,67.21654509,132.73,132.57,21.73]
[1726235415857,52.22328832,132.73,132.57,6.9036]
[1726235416050,21.73,132.64,132.52,7.5454]
[1726235416247,25.48151131,132.64,132.58,3.7709]
[1726235416755,25.48151131,132.64,132.56,21.73]
[1726235417363,25.48151131,132.64,132.59,3.7706]
[1726235417857,3.75151131,132.64,132.59,21.73]
[1726235418064,21.73,132.68,132.59,21.73]
[1726235418264,25.479625,132.68,132.61,3.77]
[1726235418963,25.479625,132.68,132.61,21.73]
[1726235419156,3.749625,132.68,132.61,21.73]
[1726235419358,21.73,132.7,132.64,3.7693]
[1726235420060,25.50707301,132.7,132.63,3.7695]
[1726235420262,25.50707301,132.7,132.61,21.73]
[1726235420457,21.73,132.68,132.59,21.73]
[1726235420660,21.73,132.68,132.61,3.7702]
[1726235421158,25.53272888,132.68,132.62,4.2034]
[1726235421365,21.73,132.66,132.62,4.2034]
[1726235423961,21.73,132.64,132.62,2.7816]
[1726235425765,21.73,132.66,132.62,2.7816]
[1726235426370,25.48820839,132.66,132.62,2.7816]
[1726235427360,3.75820839,132.66,132.62,2.7816]
[1726235427556,21.73,132.67,132.62,2.7816]
[1726235428065,25.53574722,132.67,132.62,2.7816]
[1726235428365,3.80574722,132.67,132.62,2.7816]
[1726235428568,21.73,132.69,132.62,2.7816]
[1726235428762,21.73,132.69,132.62,6.5514]
[1726235429167,25.40869,132.69,132.62,2.7816]